bitfinex-derivatives/quotes_BNBF0:USTF0_20250101
["timestamp","ask_amount","ask_price","bid_price","bid_amount"]
[1735703330796,0.26072181,706.59,705.61,1.06261399]
[1735703330998,1.05405819,706.56,705.65,1.06261399]
[1735703331298,0.26072181,706.55,705.65,1.06261399]
[1735703331998,0.26072181,706.55,705.41,0.28352305]
[1735703331999,1.05405819,706.54,705.63,1.06261399]
[1735703332199,0.26072181,706.53,705.63,1.06261399]
[1735703332599,1.05405819,706.54,705.63,1.06261399]
[1735703332900,0.26072894,706.53,705.63,1.06261399]
[1735703333099,0.26072894,706.53,705.41,0.28352305]
[1735703333100,0.26072894,706.53,705.64,1.06261399]
[1735703333299,0.26072894,706.52,705.64,1.06261399]
[1735703333497,0.26072894,706.51,705.64,1.06261399]
[1735703333697,0.26072894,706.5,705.64,1.06261399]
[1735703333893,1.05405819,706.55,705.64,1.06261399]
[1735703334099,1.05405819,706.55,705.41,0.28352305]
[1735703334100,1.31478894,706.54,705.63,1.06261399]
[1735703334299,0.26073075,706.53,705.63,1.06261399]
[1735703335194,1.05405819,706.54,705.63,1.06261399]
[1735703335397,0.26073036,706.53,705.63,1.06261399]
[1735703335799,0.26073036,706.52,705.63,1.06261399]
[1735703336002,0.26073036,706.51,705.63,1.06261399]
[1735703336195,0.26073036,706.5,705.63,1.06261399]
[1735703336395,0.26073036,706.49,705.63,1.06261399]
[1735703336595,0.26073036,706.48,705.66,1.06261399]
[1735703336793,1.05405819,706.54,705.66,1.06261399]
[1735703336993,0.2607249,706.53,705.66,1.06261399]
[1735703338000,0.26072488,706.52,705.66,1.06261399]
[1735703338195,0.26072488,706.51,705.67,1.06261399]
[1735703338399,0.26072488,706.5,705.67,1.06261399]
[1735703338593,0.26072488,706.49,705.67,1.06261399]
[1735703338797,0.26072488,706.48,705.67,1.06261399]
[1735703339000,1.05405819,706.53,705.67,1.06261399]
[1735703339201,0.26072167,706.52,705.67,1.06261399]
[1735703340197,0.26072408,706.51,705.68,1.06261399]
[1735703340402,0.26072408,706.5,705.68,1.06261399]
[1735703340703,1.05405819,706.53,705.68,1.06261399]
[1735703340704,0.26072309,706.49,705.68,1.06261399]
[1735703341002,0.26072309,706.48,705.68,1.06261399]
[1735703341196,1.05405819,706.53,705.68,1.06261399]
[1735703341400,1.05405819,706.51,705.67,1.06261399]
[1735703341601,0.26072483,706.5,705.67,1.06261399]
[1735703342102,0.26072483,706.5,705.68,1.06261399]
[1735703342301,0.26072483,706.49,705.68,1.06261399]
[1735703342502,0.26072475,706.48,705.68,1.06261399]
[1735703342698,1.05405819,706.52,705.68,1.06261399]
[1735703342897,0.26072475,706.51,705.68,1.06261399]
[1735703343203,0.26072475,706.51,705.69,1.06261399]
[1735703345004,1.05405819,706.51,705.7,1.06261399]
[1735703345198,0.26072234,706.5,705.7,1.06261399]
[1735703345699,0.26072234,706.5,705.71,1.06261399]
[1735703345905,0.26072281,706.49,705.71,1.06261399]
[1735703346105,0.26072281,706.48,705.71,1.06261399]
[1735703346409,1.05405819,706.51,705.71,1.06261399]
[1735703346607,0.26072255,706.5,705.71,1.06261399]
[1735703346802,0.28308563,706.5,705.71,1.06261399]
[1735703347202,1.47892636,706.49,705.71,1.06261399]
[1735703347403,0.28309364,706.48,705.71,1.06261399]
[1735703348908,0.28309364,706.48,705.09,1.06261399]
[1735703349607,0.28309364,706.48,705.07,1.06261399]
[1735703349808,0.28309364,706.48,705.07,1.34627376]
[1735703352008,0.28309364,706.48,705.07,0.28365977]
[1735703356812,0.26080631,706.47,705.07,0.28365977]
[1735703359617,0.26081305,706.46,705.07,0.28365977]
[1735703359914,0.26081305,706.45,705.07,0.28365977]
[1735703360110,0.26081305,706.44,705.07,0.28365977]
[1735703360312,0.26081305,706.43,705.07,0.28365977]
[1735703360513,0.26081305,706.42,705.07,0.28365977]
[1735703360708,0.26081305,706.41,705.07,0.28365977]
[1735703360915,0.26081305,706.4,705.07,0.28365977]
[1735703361111,0.26081305,706.39,705.07,0.28365977]
[1735703361315,0.28309364,706.48,705.07,0.28365977]
[1735703361513,0.26081014,706.47,705.07,0.28365977]
[1735703361716,0.26081014,706.47,705.08,1.06261399]
[1735703362512,0.26081744,706.46,705.08,1.06261399]
[1735703362716,0.26081744,706.45,705.08,1.06261399]
[1735703362917,0.26081744,706.44,705.08,1.06261399]
[1735703363118,0.26081744,706.43,705.08,1.06261399]
[1735703363314,0.2608152,706.42,705.08,1.06261399]
[1735703363621,0.2608152,706.41,705.08,1.06261399]
[1735703363815,0.2608152,706.4,705.08,1.06261399]
[1735703364013,0.2608152,706.39,705.08,1.06261399]
[1735703364213,0.2608152,706.38,705.08,1.06261399]
[1735703364415,0.2608152,706.37,705.08,1.06261399]
[1735703364618,0.28309364,706.48,705.08,1.06261399]
[1735703364919,0.26080106,706.47,705.09,1.06261399]
[1735703366813,0.26080106,706.47,705.1,1.06261399]
[1735703367822,0.26080106,706.47,705.26,1.06261399]
[1735703368515,0.28309364,706.48,705.26,1.06261399]
[1735703368716,0.26078791,706.47,705.26,1.06261399]
[1735703368918,0.26078791,706.47,705.27,1.06261399]
[1735703370225,0.26078791,706.47,705.33,1.06261399]
[1735703371419,0.26077817,706.46,705.31,1.06261399]
[1735703371620,0.26077817,706.45,705.31,1.06261399]
[1735703371821,0.26077817,706.44,705.31,1.06261399]
[1735703372022,0.26077817,706.47,705.31,1.06261399]
[1735703372324,0.26077817,706.46,705.33,1.06261399]
[1735703372523,0.26077817,706.45,705.33,1.06261399]
[1735703372720,0.26077817,706.44,705.33,1.06261399]
[1735703372921,0.26077817,706.43,705.33,1.06261399]
[1735703373118,0.26077817,706.42,705.27,1.06261399]
[1735703373320,0.26077817,706.41,705.27,1.06261399]
[1735703373523,0.28309364,706.48,705.27,1.06261399]
[1735703373726,0.26077648,706.47,705.27,1.06261399]
[1735703374425,0.26077648,706.47,705.29,1.06261399]
[1735703374619,0.26078119,706.46,705.29,1.06261399]
[1735703374823,0.26078119,706.45,705.29,1.06261399]
[1735703375024,0.26078119,706.44,705.29,1.06261399]
[1735703375221,0.26078119,706.43,705.29,1.06261399]
[1735703375524,0.28309364,706.48,705.29,1.06261399]
[1735703375719,0.2607665,706.47,705.3,1.06261399]
[1735703376327,0.28309364,706.48,705.3,1.06261399]
[1735703377028,0.28309364,706.48,705.29,1.06261399]
[1735703377824,0.28309364,706.48,705.31,1.06261399]
[1735703378626,0.28309364,706.48,705.32,1.06261399]
[1735703380930,0.28309364,706.48,705.35,1.06261399]
[1735703382025,0.28309364,706.48,705.38,1.06261399]
[1735703383531,0.28309364,706.48,705.4,1.06261399]
[1735703385733,0.28309364,706.48,705.39,1.06261399]
[1735703386126,0.2607656,706.47,705.39,1.06261399]
[1735703387028,0.2607656,706.47,705.47,1.06261399]
[1735703388132,0.2607656,706.47,705.09,0.28365173]
[1735703388133,0.2607656,706.47,705.48,1.06261399]
[1735703390132,0.2607641,706.46,705.48,1.06261399]
[1735703390333,0.2607641,706.45,705.47,1.06261399]
[1735703390625,0.2607641,706.44,705.47,1.06261399]
[1735703390832,0.2607641,706.43,705.47,1.06261399]
[1735703391029,0.2607641,706.42,705.47,1.06261399]
[1735703391227,0.28309364,706.48,705.47,1.06261399]
[1735703391434,0.26076336,706.47,705.47,1.06261399]
[1735703391835,0.28309364,706.48,705.47,1.06261399]
[1735703392737,0.28309364,706.48,705.5,1.06261399]
[1735703394132,0.28309364,706.48,705.44,1.06261399]
[1735703394838,0.28309364,706.48,705.41,1.06261399]
[1735703397942,0.28309364,706.48,705.39,1.06261399]
[1735703398942,0.28309364,706.48,705.41,1.06261399]
[1735703399739,0.28309364,706.48,705.42,1.06261399]
[1735703401139,0.28309364,706.48,705.44,1.06261399]
[1735703402551,0.28309364,706.48,705.34,1.06261399]
[1735703402751,0.28309364,706.48,705.35,0.28354717]
[1735703404249,0.28309364,706.48,705.37,1.06261399]
[1735703404450,0.28309364,706.48,705.37,1.34615312]
[1735703405446,0.28309364,706.48,705.37,0.28353913]
[1735703411351,0.28309364,706.48,705.38,1.06261399]
[1735703412554,0.28309364,706.48,705.51,1.06261399]
[1735703415255,0.28309364,706.48,705.49,1.06261399]
[1735703415957,0.28309364,706.48,705.51,1.06261399]
[1735703417155,0.28309364,706.48,705.52,1.06261399]
[1735703418060,0.28309364,706.48,705.48,1.06261399]
[1735703419261,0.28309364,706.48,705.37,0.28353913]
[1735703419262,0.28309364,706.48,705.43,1.06261399]
[1735703421262,0.28309364,706.48,705.46,1.06261399]
[1735703422566,0.28309364,706.48,705.43,1.06261399]
[1735703423566,0.28309364,706.48,705.37,0.28353913]
[1735703425768,0.28309364,706.48,705.38,1.06261399]
[1735703426862,0.28309364,706.48,705.41,1.06261399]
[1735703427768,0.28309364,706.48,705.43,1.06261399]
[1735703428867,0.28309364,706.48,705.49,1.06261399]
[1735703429968,0.28309364,706.48,705.13,1.06261399]
[1735703431170,0.28309364,706.48,705.0,1.06261399]
[1735703431771,1.47927736,706.47,705.0,1.06261399]
[1735703432170,0.28310166,706.46,705.0,1.06261399]
[1735703432370,0.28310166,706.46,704.68,1.06261399]
[1735703432371,0.28310166,706.46,704.97,1.06261399]
[1735703432671,0.28310166,706.46,704.98,0.28369599]
[1735703433367,0.24739768,706.45,704.98,0.28369599]
[1735703433769,0.28310166,706.46,704.98,0.28369599]
[1735703434465,0.26084253,706.45,705.07,1.06261399]
[1735703434664,0.28310967,706.44,705.07,1.06261399]
[1735703434870,0.26084253,706.43,705.07,1.06261399]
[1735703435068,0.28311769,706.42,705.07,1.06261399]
[1735703435265,0.26084253,706.41,705.07,1.06261399]
[1735703435870,0.26084253,706.41,704.98,0.28369599]
[1735703435871,0.26084253,706.41,705.0,1.06261399]
[1735703436265,0.28311769,706.42,705.0,1.06261399]
[1735703436972,0.28311769,706.42,704.98,0.28369599]
[1735703446078,0.26088032,706.41,704.98,0.28369599]
[1735703446277,0.2831257,706.4,704.98,0.28369599]
[1735703446672,0.2608871,706.39,704.98,0.28369599]
[1735703446877,0.28313372,706.38,704.98,0.28369599]
[1735703447077,0.2608871,706.37,704.98,0.28369599]
[1735703447274,0.28314174,706.36,704.98,0.28369599]
[1735703448781,0.26091337,706.35,704.98,0.28369599]
[1735703449777,0.28314975,706.34,704.98,0.28369599]
[1735703449982,0.26091337,706.33,704.98,0.28369599]
[1735703451479,0.28315777,706.32,704.98,0.28369599]
[1735703451680,0.26091337,706.31,704.98,0.28369599]
[1735703451877,0.54409142,706.3,704.98,0.28369599]
[1735703452084,0.54409543,706.29,704.98,0.28369599]
[1735703452277,0.26092563,706.28,704.98,0.28369599]
[1735703452477,0.54410488,706.27,704.98,0.28369599]
[1735703452677,0.28317782,706.27,704.98,0.28369599]
[1735703453783,0.2609242,706.26,704.98,0.28369599]
[1735703454783,0.28318584,706.25,704.98,0.28369599]
[1735703454983,0.26092526,706.24,704.98,0.28369599]
[1735703455284,0.28319386,706.23,704.98,0.28369599]
[1735703455480,0.26092526,706.22,704.98,0.28369599]
[1735703455685,0.28320188,706.21,704.98,0.28369599]
[1735703455884,0.26092526,706.2,704.98,0.28369599]
[1735703456083,0.2832099,706.19,704.98,0.28369599]
[1735703456284,0.26092526,706.18,704.98,0.28369599]
[1735703457186,1.47994316,706.17,704.98,0.28369599]
[1735703457386,0.26092526,706.16,704.98,0.28369599]
[1735703457982,0.26092196,706.15,704.98,0.28369599]
[1735703458179,0.26092196,706.14,704.98,0.28369599]
[1735703458481,0.26092196,706.13,704.98,0.28369599]
[1735703458690,0.26092196,706.12,704.98,0.28369599]
[1735703458986,0.26092196,706.11,704.98,0.28369599]
[1735703459281,0.26092196,706.1,704.98,0.28369599]
[1735703459487,0.26092196,706.09,704.98,0.28369599]
[1735703459687,0.26092196,706.08,704.98,0.28369599]
[1735703459889,0.26092196,706.07,704.98,0.28369599]
[1735703460088,0.26092196,706.06,704.98,0.28369599]
[1735703460290,0.26092196,706.05,704.98,0.28369599]
[1735703460489,0.26092196,706.04,704.98,0.28369599]
[1735703460686,0.26092642,706.03,704.98,0.28369599]
[1735703460987,0.26092642,706.02,704.98,0.28369599]
[1735703461187,0.26092642,706.01,704.98,0.28369599]
[1735703461387,0.26092642,706.0,704.98,0.28369599]
[1735703461588,0.26092642,705.99,704.98,0.28369599]
[1735703461889,0.26092642,705.98,704.98,0.28369599]
[1735703462088,0.26092642,705.97,704.98,0.28369599]
[1735703462290,0.26092642,705.96,704.98,0.28369599]
[1735703462584,1.47994316,706.17,704.98,0.28369599]
[1735703462789,0.26092848,706.16,704.98,0.28369599]
[1735703465985,1.47994316,706.17,704.98,0.28369599]
[1735703466188,0.26092942,706.16,704.98,0.28369599]
[1735703469088,0.26092041,706.15,704.98,0.28369599]
[1735703469288,0.26092041,706.14,704.98,0.28369599]
[1735703469489,0.26092041,706.13,704.98,0.28369599]
[1735703469689,0.26091984,706.12,704.98,0.28369599]
[1735703469887,0.26091984,706.11,704.98,0.28369599]
[1735703470086,1.47994316,706.17,704.98,0.28369599]
[1735703470087,0.26091984,706.1,704.98,0.28369599]
[1735703470287,0.26091984,706.09,704.98,0.28369599]
[1735703470486,0.26091984,706.08,704.98,0.28369599]
[1735703470692,0.26091984,706.07,704.98,0.28369599]
[1735703470987,0.26091984,706.06,704.98,0.28369599]
[1735703471194,0.26091984,706.05,704.98,0.28369599]
[1735703471392,0.26091984,706.04,704.98,0.28369599]
[1735703471593,0.26091984,706.03,704.98,0.28369599]
[1735703471894,1.47994316,706.17,704.98,0.28369599]
[1735703472088,0.26091972,706.16,704.98,0.28369599]
[1735703474789,1.76316108,706.17,704.98,0.28369599]
[1735703474991,0.26091948,706.16,704.98,0.28369599]
[1735703475195,0.26091965,706.15,704.98,0.28369599]
[1735703475395,0.26091965,706.14,704.98,0.28369599]
[1735703475695,0.26091965,706.13,704.98,0.28369599]
[1735703475891,0.26091965,706.12,704.98,0.28369599]
[1735703476089,0.26091965,706.11,704.98,0.28369599]
[1735703476290,0.26091965,706.1,704.98,0.28369599]
[1735703476489,0.26091965,706.09,704.98,0.28369599]
[1735703476689,1.76316108,706.17,704.98,0.28369599]
[1735703476995,0.26091475,706.16,704.98,0.28369599]
[1735703478090,0.26091187,706.15,704.98,0.28369599]
[1735703478291,0.26091187,706.14,704.98,0.28369599]
[1735703478495,0.26091187,706.13,704.98,0.28369599]
[1735703478697,0.26092168,706.12,705.01,1.06261399]
[1735703478898,0.26092168,706.11,705.01,1.06261399]
[1735703479092,0.26092168,706.1,705.01,1.06261399]
[1735703479292,0.26092168,706.09,705.01,1.06261399]
[1735703479493,0.26092168,706.08,705.01,1.06261399]
[1735703479697,0.26092168,706.07,705.01,1.06261399]
[1735703479899,0.26092168,706.06,705.04,1.06261399]
[1735703480100,0.26092168,706.05,705.04,1.06261399]
[1735703480300,0.26092168,706.04,705.04,1.06261399]
[1735703480500,0.26092168,706.03,705.04,1.06261399]
[1735703480697,0.26092168,706.02,705.04,1.06261399]
[1735703480899,1.05405819,706.11,705.04,1.06261399]
[1735703481100,1.05405819,706.07,705.06,1.06261399]
[1735703481400,0.26092332,706.06,705.06,1.06261399]
[1735703482098,0.26092332,706.06,704.98,0.28369599]
[1735703482099,1.05405819,706.04,705.11,1.06261399]
[1735703482298,0.26092332,706.03,705.11,1.06261399]
[1735703483205,1.05405819,706.02,705.1,1.06261399]
[1735703484407,1.76316108,706.17,704.98,0.28369599]
[1735703484408,1.05405819,706.0,705.13,1.06261399]
[1735703485301,1.05405819,705.99,705.13,1.06261399]
[1735703485504,0.26092908,705.98,705.13,1.06261399]
[1735703485704,1.05405819,705.99,705.13,1.06261399]
[1735703486908,1.05405819,705.96,705.17,1.06261399]
[1735703487905,1.05405819,705.98,705.16,1.06261399]
[1735703489010,1.05405819,706.02,705.13,1.06261399]
[1735703489909,1.05405819,706.02,705.11,1.06261399]
[1735703492314,1.05405819,706.01,705.11,1.06261399]
[1735703493410,1.05405819,706.02,704.98,0.28369599]
[1735703494817,2.53391219,706.07,704.98,0.28369599]
[1735703496514,1.479854,706.07,704.98,0.28369599]
[1735703500016,0.26099497,706.06,704.98,0.28369599]
[1735703500217,0.26099497,706.06,704.8,1.06261399]
[1735703501016,0.26099497,706.06,704.63,1.06261399]
[1735703501717,1.479854,706.07,704.63,1.06261399]
[1735703502316,0.26099228,706.06,704.62,1.06261399]
[1735703502516,0.26099228,706.06,704.62,1.34645492]
[1735703503311,0.28326605,706.05,704.62,1.34645492]
[1735703503518,0.26099228,706.04,704.64,1.06261399]
[1735703503817,0.28326605,706.05,704.64,1.06261399]
[1735703504011,0.26098904,706.04,704.64,1.06261399]
[1735703505016,0.28326605,706.05,704.64,1.06261399]
[1735703505217,0.26099055,706.04,704.64,1.06261399]
[1735703505615,0.28326605,706.05,704.64,1.06261399]
[1735703505813,0.26099073,706.04,704.64,1.06261399]
[1735703506218,0.26099073,706.04,704.62,1.34645492]
[1735703507012,0.28326605,706.05,704.62,1.34645492]
[1735703507218,0.28326605,706.05,704.62,0.28384093]
[1735703508714,0.28326605,706.05,704.67,1.06261399]
[1735703509924,0.26097727,706.04,704.66,1.06261399]
[1735703510920,0.26097727,706.04,704.71,1.06261399]
[1735703512418,0.26097727,706.04,704.74,1.06261399]
[1735703513122,0.26098052,706.03,704.74,1.06261399]
[1735703513325,0.26098052,706.02,704.76,1.06261399]
[1735703513522,0.26098052,706.01,704.76,1.06261399]
[1735703513719,0.2609808,706.0,704.76,1.06261399]
[1735703513923,0.2609808,705.99,704.76,1.06261399]
[1735703514123,0.2609808,705.98,704.76,1.06261399]
[1735703514324,0.2609808,705.97,704.76,1.06261399]
[1735703514525,0.2609808,705.96,704.76,1.06261399]
[1735703514724,0.28326605,706.05,704.76,1.06261399]
[1735703514925,0.26095322,706.04,704.76,1.06261399]
[1735703515524,0.26095322,706.04,704.84,1.06261399]
[1735703515723,0.28326605,706.05,704.84,1.06261399]
[1735703516025,0.26094756,706.04,704.84,1.06261399]
[1735703516829,0.26094756,706.04,704.85,1.06261399]
[1735703517829,0.26094756,706.04,704.88,1.06261399]
[1735703518722,0.26094756,706.04,704.89,1.06261399]
[1735703519329,0.28326605,706.05,704.89,1.06261399]
[1735703520231,0.28326605,706.05,704.88,1.06261399]
[1735703521432,0.28326605,706.05,704.86,1.06261399]
[1735703523632,0.28326605,706.05,704.89,1.06261399]
[1735703525140,0.28326605,706.05,704.91,1.06261399]
[1735703527339,0.28326605,706.05,704.64,0.28383287]
[1735703527340,0.28326605,706.05,704.93,1.06261399]
[1735703529039,0.28326605,706.05,704.94,1.06261399]
[1735703530438,0.28326605,706.05,704.97,1.06261399]
[1735703531645,0.28326605,706.05,704.96,1.06261399]
[1735703533243,0.26095033,706.04,704.96,1.06261399]
[1735703533543,0.28327408,706.03,704.96,1.06261399]
[1735703533745,0.26095033,706.02,704.95,1.06261399]
[1735703533943,0.2832821,706.01,704.95,1.06261399]
[1735703534140,0.26095033,706.0,704.95,1.06261399]
[1735703534445,0.28329013,705.99,704.95,1.06261399]
[1735703534643,0.26095033,705.98,704.95,1.06261399]
[1735703534845,1.05405819,705.93,704.66,0.28382482]
[1735703535043,0.54426855,705.92,704.66,0.28382482]
[1735703535246,0.54427256,705.91,704.66,0.28382482]
[1735703535448,0.26095033,705.9,704.66,0.28382482]
[1735703535748,0.54427658,705.9,704.66,0.28382482]
[1735703535951,0.26095033,705.89,704.66,0.28382482]
[1735703536145,0.28333427,705.88,704.66,0.28382482]
[1735703536344,0.26095033,705.87,704.66,0.28382482]
[1735703536549,0.54428862,705.87,704.66,0.28382482]
[1735703536850,0.28333829,705.87,704.66,0.28382482]
[1735703537050,0.26104417,705.86,704.66,0.28382482]
[1735703539149,0.28333829,705.87,704.66,0.28382482]
[1735703543758,1.48049407,705.86,704.66,0.28382482]
[1735703564368,0.26103439,705.85,704.66,0.28382482]
[1735703565675,0.26103421,705.84,704.66,0.28382482]
[1735703565875,0.26103421,705.83,704.66,0.28382482]
[1735703566071,0.26103421,705.82,704.66,0.28382482]
[1735703566268,0.26103421,705.81,704.66,0.28382482]
[1735703566471,1.48049407,705.86,704.66,0.28382482]
[1735703566668,0.26103449,705.85,704.66,0.28382482]
[1735703568378,0.26103459,705.84,704.66,0.28382482]
[1735703568575,0.26103459,705.83,704.66,0.28382482]
[1735703568776,0.26103459,705.82,704.66,0.28382482]
[1735703568969,0.26103459,705.81,704.69,1.06261399]
[1735703569174,1.05405819,705.84,704.69,1.06261399]
[1735703569374,0.26103459,705.83,704.69,1.06261399]
[1735703569976,1.05405819,705.76,704.76,1.06261399]
[1735703571177,0.26103419,705.75,704.76,1.06261399]
[1735703571979,1.05405819,705.72,704.81,1.06261399]
[1735703574380,1.05405819,705.73,704.8,1.06261399]
[1735703575183,1.05405819,705.73,704.81,1.06261399]
[1735703577487,1.05405819,705.73,704.82,1.06261399]
[1735703580582,1.48049407,705.86,704.82,1.06261399]
[1735703580583,1.05405819,705.71,704.82,1.06261399]
[1735703581688,1.05405819,705.76,704.73,1.06261399]
[1735703583787,0.28333829,705.87,704.66,0.28382482]
[1735703592191,0.26098615,705.86,704.66,0.28382482]
[1735703593489,0.26098615,705.86,704.82,1.06261399]
[1735703594195,0.26099115,705.85,704.82,1.06261399]
[1735703594490,0.26099115,705.84,704.82,1.06261399]
[1735703594696,0.26099115,705.83,704.84,1.06261399]
[1735703594994,0.26099115,705.82,704.84,1.06261399]
[1735703595194,0.26099115,705.81,704.84,1.06261399]
[1735703595394,0.26099115,705.8,704.84,1.06261399]
[1735703595594,0.28333829,705.87,704.84,1.06261399]
[1735703595896,0.26099222,705.86,704.84,1.06261399]
[1735703596394,0.26099222,705.86,704.83,1.06261399]
[1735703596792,0.26099175,705.85,704.83,1.06261399]
[1735703596990,0.26099175,705.84,704.83,1.06261399]
[1735703597192,0.26099175,705.83,704.83,1.06261399]
[1735703597393,0.26099175,705.82,704.83,1.06261399]
[1735703597590,0.26099175,705.81,704.84,1.06261399]
[1735703597790,0.26099175,705.8,704.84,1.06261399]
[1735703597991,0.28333829,705.87,704.84,1.06261399]
[1735703598196,0.26099155,705.86,704.84,1.06261399]
[1735703598397,0.26099155,705.86,704.83,1.06261399]
[1735703599288,0.26099155,705.86,704.84,1.06261399]
[1735703599495,0.26099156,705.85,704.84,1.06261399]
[1735703599689,0.26099156,705.84,704.84,1.06261399]
[1735703599895,0.26099156,705.83,704.84,1.06261399]
[1735703600094,0.26099102,705.82,704.84,1.06261399]
[1735703600295,0.26099102,705.81,704.85,1.06261399]
[1735703600495,0.26099102,705.8,704.85,1.06261399]
[1735703600696,0.26099102,705.79,704.85,1.06261399]
[1735703600896,0.26099102,705.78,704.85,1.06261399]
[1735703601097,0.26099114,705.77,704.85,1.06261399]
[1735703601297,0.26099114,705.77,704.66,1.34643881]
[1735703601298,0.26099181,705.76,704.86,1.06261399]
[1735703601499,0.28333829,705.87,704.86,1.06261399]
[1735703601690,0.26099079,705.86,704.86,1.06261399]
[1735703602295,0.26098642,705.85,704.86,1.06261399]
[1735703602497,0.26098642,705.84,704.87,1.06261399]
[1735703602693,0.26098642,705.83,704.87,1.06261399]
[1735703602897,0.26098642,705.82,704.87,1.06261399]
[1735703603091,0.26098642,705.81,704.87,1.06261399]
[1735703603295,0.26098642,705.8,704.87,1.06261399]
[1735703603495,0.26098642,705.79,704.87,1.06261399]
[1735703603694,0.26098642,705.78,704.87,1.06261399]
[1735703603896,0.26098642,705.77,704.88,1.06261399]
[1735703604096,0.28333829,705.87,704.88,1.06261399]
[1735703604291,0.26098813,705.86,704.88,1.06261399]
[1735703604897,0.26098829,705.85,704.88,1.06261399]
[1735703605097,0.26098829,705.84,704.88,1.06261399]
[1735703605296,0.26098829,705.83,704.88,1.06261399]
[1735703605495,0.26098829,705.82,704.88,1.06261399]
[1735703605695,0.26098829,705.81,704.88,1.06261399]
[1735703605896,0.26098829,705.86,704.88,1.06261399]
[1735703606095,0.26098829,705.85,704.88,1.06261399]
[1735703606296,0.26098829,705.84,704.89,1.06261399]
[1735703606494,0.26098829,705.83,704.89,1.06261399]
[1735703606698,0.28333829,705.87,704.89,1.06261399]
[1735703606699,0.26098829,705.82,704.89,1.06261399]
[1735703606899,0.26098829,705.81,704.89,1.06261399]
[1735703607100,0.26098829,705.8,704.89,1.06261399]
[1735703607298,0.26098829,705.79,704.89,1.06261399]
[1735703607499,0.28333829,705.87,704.89,1.06261399]
[1735703607797,0.26098536,705.86,704.89,1.06261399]
[1735703608797,0.26098536,705.86,704.92,1.06261399]
[1735703610000,1.05405819,705.85,704.89,1.06261399]
[1735703610499,0.26099283,705.84,704.89,1.06261399]
[1735703610894,1.31505102,705.84,704.9,1.06261399]
[1735703611101,0.26099283,705.83,704.9,1.06261399]
[1735703611894,0.26099283,705.83,704.91,1.06261399]
[1735703612499,1.05405819,705.84,704.91,1.06261399]
[1735703612695,0.28333829,705.87,704.96,1.06261399]
[1735703614200,0.28333829,705.87,704.91,1.06261399]
[1735703615201,0.28333829,705.87,704.89,1.06261399]
[1735703616493,0.28333829,705.87,704.88,1.06261399]
[1735703617603,0.28333829,705.87,704.68,0.28381676]
[1735703617604,0.28333829,705.87,704.87,1.06261399]
[1735703618400,0.28333829,705.87,704.88,1.06261399]
[1735703619603,0.28333829,705.87,704.87,1.06261399]
[1735703620699,0.28333829,705.87,704.89,1.06261399]
[1735703621905,0.28333829,705.87,704.87,1.06261399]
[1735703623005,0.28333829,705.87,704.94,1.06261399]
[1735703626809,0.28333829,705.87,704.95,1.06261399]
[1735703627710,0.28333829,705.87,704.96,1.06261399]
[1735703629005,0.28333829,705.87,704.95,1.06261399]
[1735703629912,0.28333829,705.87,704.7,0.28380871]
[1735703629913,0.28333829,705.87,704.94,1.06261399]
[1735703632412,0.28333829,705.87,704.95,1.06261399]
[1735703633314,0.28333829,705.87,704.93,1.06261399]
[1735703634615,0.28333829,705.87,704.96,1.06261399]
[1735703634918,0.26095526,705.86,704.96,1.06261399]
[1735703635816,0.28333829,705.87,704.96,1.06261399]
[1735703636115,0.28333829,705.87,704.98,1.06261399]
[1735703636818,0.26095413,705.86,704.98,1.06261399]
[1735703637117,0.28333829,705.87,704.99,1.06261399]
[1735703637314,0.2609546,705.86,704.99,1.06261399]
[1735703638115,0.2609546,705.86,705.01,1.06261399]
[1735703639118,0.28333829,705.87,705.01,1.06261399]
[1735703640321,0.28333829,705.87,704.91,1.06261399]
[1735703643724,0.28333829,705.87,704.88,1.06261399]
[1735703645626,0.28333829,705.87,704.84,1.06261399]
[1735703646725,0.28333829,705.87,704.86,1.06261399]
[1735703648124,0.28333829,705.87,704.88,1.06261399]
[1735703649125,0.28333829,705.87,704.86,1.06261399]
[1735703650127,0.28333829,705.87,704.92,1.06261399]
[1735703653432,0.28333829,705.87,704.7,0.28380871]
[1735703653433,0.28333829,705.87,704.94,1.06261399]
[1735703654530,0.26097676,705.86,704.94,1.06261399]
[1735703654732,0.26097676,705.86,704.95,1.06261399]
[1735703654932,0.2609765,705.85,704.95,1.06261399]
[1735703655132,0.2609765,705.84,704.95,1.06261399]
[1735703655332,0.2609765,705.83,704.95,1.06261399]
[1735703655535,0.26097431,705.82,705.0,1.06261399]
[1735703655731,0.26097431,705.81,705.0,1.06261399]
[1735703655931,1.05405819,705.84,705.0,1.06261399]
[1735703656124,0.26097397,705.83,705.0,1.06261399]
[1735703656830,0.26097397,705.83,704.71,0.71625918]
[1735703656831,0.26097397,705.83,704.99,1.06261399]
[1735703657026,0.26097397,705.82,704.99,1.06261399]
[1735703657231,1.05405819,705.86,704.99,1.06261399]
[1735703657431,0.26097317,705.85,704.99,1.06261399]
[1735703659133,0.26097317,705.85,705.01,1.06261399]
[1735703659335,0.26097317,705.84,705.01,1.06261399]
[1735703659629,0.26097317,705.83,705.01,1.06261399]
[1735703659833,0.26097317,705.82,705.01,1.06261399]
[1735703660035,0.28333829,705.87,705.01,1.06261399]